[Event "4. Memorial Svat.Hastika OPEN"]
[Site "Jesenik, Czech Republic"]
[Date "2022.09.03"]
[Round "6.3"]
[White "Zrubek, Dan"]
[Black "Wrobel, Maciej"]
[Result "0-1"]
[TimeControl "720+3"]
[WhiteFideId "23718714"]
[BlackFideId "1181351"]
[WhiteElo "1504"]
[BlackElo "1873"]

1. e4 {[%clk 00:12:04]} {[%emt 00:00:02]} e5 {[%clk 00:12:06]} 2. Nf3 {[%clk
00:12:05]} {[%emt 00:00:01]} Nc6 {[%clk 00:12:08]} {[%emt 00:00:02]} 3. Bb5
{[%clk 00:12:07]} {[%emt 00:00:02]} a6 {[%clk 00:12:08]} {[%emt 00:00:03]} 4.
Ba4 {[%clk 00:12:08]} Nf6 {[%clk 00:12:10]} {[%emt 00:00:01]} 5. O-O {[%clk
00:12:09]} {[%emt 00:00:02]} Be7 {[%clk 00:12:10]} {[%emt 00:00:04]} 6. Re1
{[%clk 00:12:01]} {[%emt 00:00:10]} b5 {[%clk 00:12:10]} {[%emt 00:00:03]} 7.
Bb3 {[%clk 00:12:03]} {[%emt 00:00:02]} O-O {[%clk 00:12:05]} {[%emt 00:00:08]}
8. a4 {[%clk 00:12:05]} Bb7 {[%clk 00:11:58]} {[%emt 00:00:10]} 9. d3 {[%clk
00:11:54]} {[%emt 00:00:13]} d6 {[%clk 00:11:38]} {[%emt 00:00:24]} 10. Nbd2
{[%clk 00:11:55]} {[%emt 00:00:02]} Nd4 {[%clk 00:11:15]} {[%emt 00:00:25]} 11.
Ba2 {[%clk 00:11:02]} {[%emt 00:00:57]} bxa4 {[%clk 00:10:46]} {[%emt
00:00:32]} 12. Nxd4 {[%clk 00:09:58]} {[%emt 00:01:07]} exd4 {[%clk 00:10:46]}
{[%emt 00:00:03]} 13. Nf3 {[%clk 00:09:59]} {[%emt 00:00:02]} c5 {[%clk
00:10:40]} {[%emt 00:00:09]} 14. c3 {[%clk 00:09:33]} {[%emt 00:00:29]} dxc3
{[%clk 00:10:28]} {[%emt 00:00:15]} 15. bxc3 {[%clk 00:09:34]} {[%emt
00:00:01]} Bc6 {[%clk 00:10:13]} {[%emt 00:00:18]} 16. e5 {[%clk 00:06:41]}
{[%emt 00:02:57]} Nd5 {[%clk 00:09:29]} {[%emt 00:00:47]} 17. Bxd5 {[%clk
00:05:36]} {[%emt 00:01:08]} Bxd5 {[%clk 00:09:30]} {[%emt 00:00:02]} 18. Rxa4
{[%clk 00:05:12]} {[%emt 00:00:26]} Qd7 {[%clk 00:08:34]} {[%emt 00:00:59]} 19.
Ra1 {[%clk 00:04:47]} {[%emt 00:00:26]} Qg4 {[%clk 00:08:11]} {[%emt 00:00:29]}
20. h3 {[%clk 00:03:17]} {[%emt 00:01:33]} Qg6 {[%clk 00:07:10]} {[%emt
00:01:03]} 21. Ba3 {[%clk 00:01:57]} {[%emt 00:01:23]} Rab8 {[%clk 00:06:04]}
{[%emt 00:01:09]} 22. d4 {[%clk 00:00:59]} {[%emt 00:01:01]} cxd4 {[%clk
00:05:38]} {[%emt 00:00:29]} 23. exd6 {[%clk 00:00:05]} {[%emt 00:00:58]} Bxd6
{[%clk 00:05:22]} {[%emt 00:00:19]} 24. Bxd6 {[%clk 00:00:05]} {[%emt
00:00:03]} Qxd6 {[%clk 00:05:14]} {[%emt 00:00:10]} 25. Qxd4 {[%clk 00:00:06]}
{[%emt 00:00:02]} Qc6 {[%clk 00:04:47]} {[%emt 00:00:31]} 26. Ne5 {[%clk
00:00:06]} {[%emt 00:00:03]} Qb7 {[%clk 00:04:39]} {[%emt 00:00:10]} 27. Rab1
{[%clk 00:00:06]} {[%emt 00:00:04]} Qxb1 {[%clk 00:04:27]} {[%emt 00:00:15]} 28.
Rxb1 {[%clk 00:00:08]} Rxb1+ {[%clk 00:04:29]} {[%emt 00:00:01]} 29. Kh2 {[%clk
00:00:10]} Be6 {[%clk 00:04:27]} {[%emt 00:00:06]} 30. Qd3 {[%clk 00:00:08]}
{[%emt 00:00:05]} Rb2 {[%clk 00:04:21]} {[%emt 00:00:09]} 31. f3 {[%clk
00:00:05]} {[%emt 00:00:06]} Rb5 {[%clk 00:04:09]} {[%emt 00:00:15]} 32. Ng4
{[%clk 00:00:05]} {[%emt 00:00:03]} h5 {[%clk 00:04:05]} {[%emt 00:00:07]} 33.
Ne3 {[%clk 00:00:07]} Rc8 {[%clk 00:03:48]} {[%emt 00:00:20]} 34. c4 {[%clk
00:00:08]} {[%emt 00:00:02]} Rbc5 {[%clk 00:03:46]} {[%emt 00:00:05]} 35. Qa3
{[%clk 00:00:10]} {[%emt 00:00:01]} a5 {[%clk 00:03:35]} {[%emt 00:00:14]} 36.
Qa4 {[%clk 00:00:08]} {[%emt 00:00:04]} g6 {[%clk 00:03:26]} {[%emt 00:00:13]}
37. Kg3 {[%emt 00:00:05]} Bxc4 {[%clk 00:02:47]} {[%emt 00:00:40]} 38. Nxc4
{[%clk 00:00:09]} Rxc4 {[%clk 00:02:49]} {[%emt 00:00:02]} 39. Qxa5 {[%emt
00:00:02]} R8c5 {[%clk 00:02:42]} {[%emt 00:00:08]} 40. Qd8+ {[%clk 00:00:12]}
{[%emt 00:00:02]} Kg7 {[%clk 00:02:45]} {[%emt 00:00:01]} 41. Qd3 {[%clk
00:00:06]} {[%emt 00:00:09]} h4+ {[%clk 00:02:39]} {[%emt 00:00:09]} 42. Kh2
{[%clk 00:00:05]} {[%emt 00:00:04]} Rc2 {[%clk 00:02:32]} {[%emt 00:00:10]} 43.
Qd4+ {[%clk 00:00:06]} {[%emt 00:00:01]} f6 {[%clk 00:01:38]} {[%emt 00:00:56]}
44. Qxh4 {[%clk 00:00:05]} {[%emt 00:00:04]} Rg5 {[%clk 00:01:35]} {[%emt
00:00:06]} 45. Qd4 {[%clk 00:00:04]} {[%emt 00:00:05]} Rcxg2+ {[%clk 00:01:04]}
{[%emt 00:00:34]} 0-1

[Event "4. Memorial Svat.Hastika OPEN"]
[Site "Jesenik, Czech Republic"]
[Date "2022.09.03"]
[Round "6.5"]
[White "Zrubek, Adam"]
[Black "Cempel, Jaroslav"]
[Result "0-1"]
[TimeControl "720+3"]
[WhiteFideId "23718706"]
[BlackFideId "300730"]
[WhiteElo "1583"]
[BlackElo "1911"]

1. e4 {[%clk 00:12:04]} {[%emt 00:00:01]} e5 {[%clk 00:12:04]} {[%emt
00:00:03]} 2. Nf3 {[%clk 00:12:05]} {[%emt 00:00:01]} Nc6 {[%clk 00:12:05]}
{[%emt 00:00:02]} 3. Bb5 {[%emt 00:00:04]} a6 4. Ba4 {[%clk 00:12:06]} {[%emt
00:00:03]} Nf6 {[%clk 00:12:04]} {[%emt 00:00:04]} 5. O-O {[%clk 00:12:05]}
{[%emt 00:00:04]} b5 {[%clk 00:12:02]} {[%emt 00:00:06]} 6. Bb3 {[%clk
00:12:06]} {[%emt 00:00:02]} Be7 {[%clk 00:12:01]} {[%emt 00:00:04]} 7. Re1
{[%clk 00:12:06]} {[%emt 00:00:04]} O-O {[%clk 00:11:55]} {[%emt 00:00:08]} 8.
a4 {[%clk 00:12:07]} {[%emt 00:00:02]} b4 {[%clk 00:11:25]} {[%emt 00:00:32]} 9.
d3 {[%clk 00:11:59]} {[%emt 00:00:12]} d5 {[%clk 00:11:19]} {[%emt 00:00:09]}
10. exd5 {[%clk 00:11:06]} {[%emt 00:00:56]} Nxd5 {[%clk 00:11:20]} {[%emt
00:00:02]} 11. Nxe5 {[%clk 00:11:06]} {[%emt 00:00:03]} Nxe5 {[%clk 00:11:22]}
12. Rxe5 {[%clk 00:11:06]} {[%emt 00:00:03]} Nf6 {[%clk 00:11:24]} {[%emt
00:00:01]} 13. Re1 {[%clk 00:10:44]} {[%emt 00:00:25]} Bd6 {[%clk 00:11:21]}
{[%emt 00:00:06]} 14. Nd2 {[%clk 00:09:41]} {[%emt 00:01:06]} Bb7 {[%clk
00:08:33]} {[%emt 00:02:52]} 15. Ne4 {[%clk 00:09:12]} {[%emt 00:00:32]} Nxe4
{[%clk 00:07:53]} {[%emt 00:00:43]} 16. dxe4 {[%clk 00:09:06]} {[%emt
00:00:08]} Bxe4 {[%clk 00:07:50]} {[%emt 00:00:06]} 17. Qg4 {[%clk 00:07:30]}
{[%emt 00:01:40]} Bg6 {[%clk 00:06:44]} {[%emt 00:01:09]} 18. h4 {[%clk
00:07:05]} {[%emt 00:00:28]} Qc8 {[%clk 00:06:29]} {[%emt 00:00:18]} 19. Qf3
{[%clk 00:05:46]} {[%emt 00:01:22]} Qf5 {[%clk 00:06:09]} {[%emt 00:00:22]} 20.
Qxf5 {[%clk 00:04:45]} {[%emt 00:01:06]} Bxf5 {[%clk 00:06:10]} {[%emt
00:00:01]} 21. Be3 {[%clk 00:03:32]} {[%emt 00:01:17]} a5 {[%clk 00:05:50]}
{[%emt 00:00:23]} 22. f3 {[%clk 00:03:00]} {[%emt 00:00:34]} h5 {[%clk
00:05:40]} {[%emt 00:00:13]} 23. Kf2 {[%clk 00:02:30]} {[%emt 00:00:33]} Rfe8
{[%clk 00:05:14]} {[%emt 00:00:28]} 24. Rad1 {[%clk 00:01:34]} {[%emt
00:01:00]} g6 {[%clk 00:03:25]} {[%emt 00:01:52]} 25. Re2 {[%clk 00:00:51]}
{[%emt 00:00:46]} Re5 {[%clk 00:02:21]} {[%emt 00:01:06]} 26. Rde1 {[%clk
00:00:05]} {[%emt 00:00:49]} Rae8 {[%clk 00:01:59]} {[%emt 00:00:25]} 27. Bd4
{[%clk 00:00:05]} {[%emt 00:00:04]} Rxe2+ {[%clk 00:01:46]} {[%emt 00:00:17]}
28. Rxe2 {[%clk 00:00:07]} Bg3+ {[%emt 00:00:21]} 29. Kf1 {[%clk 00:00:05]}
{[%emt 00:00:02]} Rxe2 {[%clk 00:01:31]} {[%emt 00:00:03]} 30. Kxe2 {[%clk
00:00:07]} Bxh4 {[%clk 00:01:33]} {[%emt 00:00:01]} 31. Be5 {[%clk 00:00:05]}
{[%emt 00:00:05]} Bd8 {[%clk 00:01:33]} {[%emt 00:00:02]} 32. Ke3 {[%emt
00:00:36]} c5 {[%clk 00:01:04]} 33. Bd6 {[%clk 00:00:05]} {[%emt 00:00:03]} Bb6
{[%clk 00:00:34]} {[%emt 00:00:33]} 34. Kd2 {[%clk 00:00:07]} Kg7 {[%clk
00:00:25]} {[%emt 00:00:12]} 35. Bc4 {[%clk 00:00:06]} {[%emt 00:00:04]} Kf6
{[%clk 00:00:23]} {[%emt 00:00:04]} 36. Bd3 {[%clk 00:00:05]} {[%emt 00:00:05]}
Be6 {[%clk 00:00:17]} {[%emt 00:00:09]} 37. c3 {[%clk 00:00:05]} {[%emt
00:00:03]} c4 {[%clk 00:00:16]} {[%emt 00:00:04]} 38. Bc2 {[%clk 00:00:04]}
{[%emt 00:00:03]} b3 {[%clk 00:00:18]} 39. Bd1 {[%clk 00:00:05]} {[%emt
00:00:02]} Bd7 {[%clk 00:00:17]} {[%emt 00:00:05]} 40. Be2 {[%clk 00:00:05]}
{[%emt 00:00:03]} Ke6 {[%clk 00:00:18]} {[%emt 00:00:02]} 41. Bf8 {[%clk
00:00:05]} {[%emt 00:00:03]} Kd5 {[%clk 00:00:17]} {[%emt 00:00:04]} 42. f4
{[%clk 00:00:06]} {[%emt 00:00:02]} Bxa4 {[%clk 00:00:17]} {[%emt 00:00:03]} 43.
Bf3+ {[%clk 00:00:07]} {[%emt 00:00:02]} 0-1

[Event "4. Memorial Svat.Hastika OPEN"]
[Site "Jesenik, Czech Republic"]
[Date "2022.09.03"]
[Round "6.6"]
[White "Taborsky, Bedrich"]
[Black "Skovron, Josef"]
[Result "0-1"]
[TimeControl "720+3"]
[WhiteFideId "378151"]
[BlackFideId "329886"]
[WhiteElo "1793"]
[BlackElo "1821"]

1. e4 {[%clk 00:12:05]} c5 {[%clk 00:12:06]} 2. Nf3 {[%clk 00:12:07]} {[%emt
00:00:01]} Nc6 {[%clk 00:12:07]} {[%emt 00:00:03]} 3. c3 {[%clk 00:12:08]} Nf6
{[%clk 00:12:03]} {[%emt 00:00:07]} 4. Qc2 {[%clk 00:12:09]} {[%emt 00:00:02]}
e5 {[%clk 00:11:56]} {[%emt 00:00:10]} 5. g3 {[%clk 00:12:10]} {[%emt
00:00:02]} d5 {[%clk 00:11:41]} {[%emt 00:00:19]} 6. exd5 {[%clk 00:12:06]}
{[%emt 00:00:07]} Qxd5 {[%clk 00:11:36]} {[%emt 00:00:07]} 7. Bg2 {[%clk
00:12:08]} Bg4 {[%clk 00:11:00]} {[%emt 00:00:39]} 8. Nh4 {[%clk 00:12:08]}
{[%emt 00:00:04]} Qd7 {[%clk 00:10:56]} {[%emt 00:00:07]} 9. O-O {[%clk
00:12:07]} {[%emt 00:00:03]} Bd6 {[%clk 00:10:46]} {[%emt 00:00:14]} 10. Re1
{[%clk 00:12:07]} {[%emt 00:00:03]} O-O-O {[%clk 00:10:37]} {[%emt 00:00:12]}
11. a4 {[%clk 00:12:00]} {[%emt 00:00:10]} g5 {[%clk 00:10:25]} {[%emt
00:00:14]} 12. Nf3 {[%clk 00:12:00]} {[%emt 00:00:03]} Rdg8 {[%clk 00:10:09]}
{[%emt 00:00:19]} 13. a5 {[%clk 00:11:59]} {[%emt 00:00:05]} h5 {[%clk
00:10:01]} {[%emt 00:00:11]} 14. d4 {[%clk 00:11:59]} {[%emt 00:00:03]} h4
{[%clk 00:09:11]} {[%emt 00:00:53]} 15. dxe5 {[%clk 00:11:20]} {[%emt
00:00:42]} Bxf3 {[%clk 00:08:44]} {[%emt 00:00:29]} 16. Bxf3 {[%clk 00:11:11]}
{[%emt 00:00:13]} Nxe5 {[%clk 00:08:38]} {[%emt 00:00:09]} 17. Bg2 {[%clk
00:10:59]} {[%emt 00:00:15]} hxg3 {[%clk 00:08:36]} {[%emt 00:00:04]} 18. fxg3
{[%clk 00:10:50]} {[%emt 00:00:13]} Neg4 {[%clk 00:08:20]} {[%emt 00:00:17]} 19.
b4 {[%clk 00:10:27]} {[%emt 00:00:28]} Rxh2 {[%clk 00:07:44]} {[%emt 00:00:37]}
20. Qd3 {[%clk 00:10:08]} {[%emt 00:00:23]} Rgh8 {[%clk 00:06:38]} {[%emt
00:01:10]} 21. Ra2 {[%clk 00:10:02]} {[%emt 00:00:09]} Qc7 {[%clk 00:04:27]}
{[%emt 00:02:14]} 22. Ree2 {[%clk 00:09:46]} {[%emt 00:00:18]} Bxg3 {[%clk
00:03:52]} {[%emt 00:00:37]} 23. Bxb7+ {[%clk 00:09:40]} {[%emt 00:00:10]} Qxb7
{[%clk 00:02:58]} {[%emt 00:00:56]} 24. Rxh2 {[%clk 00:08:55]} {[%emt
00:00:48]} Bxh2+ {[%clk 00:02:49]} {[%emt 00:00:12]} 25. Kf1 {[%clk 00:08:55]}
{[%emt 00:00:03]} Qh1+ {[%clk 00:02:40]} {[%emt 00:00:11]} 26. Ke2 {[%clk
00:08:53]} {[%emt 00:00:06]} Qg2+ {[%clk 00:02:23]} {[%emt 00:00:21]} 0-1

[Event "4. Memorial Svat.Hastika OPEN"]
[Site "Jesenik, Czech Republic"]
[Date "2022.09.03"]
[Round "6.9"]
[White "Tschulik, Daniel"]
[Black "Kincl, Dobromir"]
[Result "0-1"]
[TimeControl "720+3"]
[WhiteFideId "23718528"]
[WhiteElo "1099"]
[BlackElo "1683"]

1. e4 {[%clk 00:12:04]} {[%emt 00:00:01]} d6 {[%clk 00:12:05]} {[%emt
00:00:01]} 2. Nc3 {[%clk 00:12:00]} {[%emt 00:00:07]} c5 {[%clk 00:11:59]}
{[%emt 00:00:09]} 3. Nf3 {[%clk 00:11:50]} {[%emt 00:00:14]} Bg4 {[%clk
00:11:57]} {[%emt 00:00:04]} 4. Bb5+ {[%clk 00:11:50]} {[%emt 00:00:04]} Nd7
{[%clk 00:11:52]} {[%emt 00:00:07]} 5. O-O {[%clk 00:11:47]} {[%emt 00:00:06]}
e6 {[%clk 00:11:43]} {[%emt 00:00:11]} 6. d3 {[%clk 00:11:47]} {[%emt
00:00:04]} Be7 {[%clk 00:11:42]} {[%emt 00:00:04]} 7. h3 {[%clk 00:11:38]}
{[%emt 00:00:12]} Bh5 {[%clk 00:11:20]} {[%emt 00:00:25]} 8. b3 {[%clk
00:11:39]} {[%emt 00:00:03]} Ngf6 {[%clk 00:11:06]} {[%emt 00:00:16]} 9. Bb2
{[%clk 00:11:40]} {[%emt 00:00:02]} O-O {[%clk 00:11:01]} {[%emt 00:00:07]} 10.
Bxd7 {[%clk 00:11:41]} {[%emt 00:00:03]} Nxd7 {[%clk 00:11:01]} {[%emt
00:00:03]} 11. Qe2 {[%clk 00:11:38]} {[%emt 00:00:07]} Ne5 {[%clk 00:10:58]}
{[%emt 00:00:05]} 12. Nd1 {[%clk 00:11:32]} {[%emt 00:00:09]} Nxf3+ {[%clk
00:10:45]} {[%emt 00:00:15]} 13. gxf3 {[%clk 00:11:32]} {[%emt 00:00:04]} e5
{[%clk 00:10:35]} {[%emt 00:00:13]} 14. Ne3 {[%clk 00:11:25]} {[%emt 00:00:10]}
g6 {[%clk 00:09:49]} {[%emt 00:00:48]} 15. Ng2 {[%clk 00:11:22]} {[%emt
00:00:06]} Qd7 {[%clk 00:09:45]} {[%emt 00:00:07]} 16. Qe3 {[%clk 00:11:09]}
{[%emt 00:00:17]} Qxh3 {[%clk 00:09:32]} {[%emt 00:00:15]} 17. f4 {[%clk
00:11:00]} {[%emt 00:00:12]} Bf3 {[%clk 00:09:25]} {[%emt 00:00:10]} 18. Ne1
{[%clk 00:10:51]} {[%emt 00:00:13]} Qh1# {[%clk 00:09:14]} {[%emt 00:00:12]}
0-1

[Event "4. Memorial Svat.Hastika OPEN"]
[Site "Jesenik, Czech Republic"]
[Date "2022.09.03"]
[Round "6.10"]
[White "Basler, Jan"]
[Black "Koterova, Hana"]
[Result "1-0"]
[TimeControl "720+3"]
[WhiteFideId "23718420"]
[WhiteElo "1285"]
[BlackElo "1309"]

1. e4 {[%clk 00:12:04]} {[%emt 00:00:02]} e5 {[%clk 00:12:01]} {[%emt
00:00:02]} 2. Nf3 {[%clk 00:12:06]} {[%emt 00:00:05]} Nc6 {[%clk 00:12:00]}
{[%emt 00:00:05]} 3. Bb5 {[%clk 00:12:07]} d6 {[%clk 00:11:49]} {[%emt
00:00:14]} 4. d3 {[%clk 00:12:08]} {[%emt 00:00:02]} Bd7 {[%clk 00:11:47]}
{[%emt 00:00:04]} 5. Be3 {[%clk 00:12:09]} {[%emt 00:00:03]} a6 {[%clk
00:11:48]} {[%emt 00:00:03]} 6. Bc4 {[%clk 00:12:01]} {[%emt 00:00:10]} Nf6
{[%clk 00:11:44]} {[%emt 00:00:06]} 7. Nbd2 {[%clk 00:11:51]} {[%emt 00:00:13]}
h6 {[%clk 00:11:41]} {[%emt 00:00:06]} 8. O-O {[%clk 00:11:49]} {[%emt
00:00:06]} b5 {[%clk 00:11:22]} {[%emt 00:00:22]} 9. Bb3 {[%clk 00:11:39]}
{[%emt 00:00:12]} a5 {[%clk 00:11:20]} {[%emt 00:00:05]} 10. c3 {[%clk
00:11:41]} {[%emt 00:00:01]} a4 {[%clk 00:11:12]} {[%emt 00:00:10]} 11. Bc2
{[%clk 00:11:43]} {[%emt 00:00:01]} d5 {[%clk 00:11:10]} {[%emt 00:00:05]} 12.
exd5 {[%clk 00:11:26]} {[%emt 00:00:20]} Nxd5 {[%clk 00:11:06]} {[%emt
00:00:07]} 13. Ne4 {[%clk 00:10:56]} {[%emt 00:00:32]} Bg4 {[%clk 00:10:35]}
{[%emt 00:00:33]} 14. d4 {[%clk 00:10:26]} {[%emt 00:00:34]} Be7 {[%clk
00:10:12]} {[%emt 00:00:26]} 15. h3 {[%clk 00:10:25]} {[%emt 00:00:04]} Bh5
{[%clk 00:10:07]} {[%emt 00:00:07]} 16. g4 {[%clk 00:10:25]} {[%emt 00:00:03]}
Bg6 {[%clk 00:09:49]} {[%emt 00:00:22]} 17. Re1 {[%clk 00:09:59]} {[%emt
00:00:29]} O-O {[%clk 00:09:10]} {[%emt 00:00:42]} 18. Nxe5 {[%clk 00:08:44]}
{[%emt 00:01:17]} Nxe5 {[%clk 00:09:05]} {[%emt 00:00:09]} 19. dxe5 {[%clk
00:08:46]} Nxe3 {[%clk 00:08:51]} {[%emt 00:00:17]} 20. Rxe3 {[%clk 00:08:42]}
{[%emt 00:00:07]} Qe8 {[%clk 00:08:06]} {[%emt 00:00:48]} 21. f4 {[%clk
00:08:22]} {[%emt 00:00:22]} Bc5 {[%clk 00:07:59]} {[%emt 00:00:10]} 22. Nxc5
{[%clk 00:08:20]} {[%emt 00:00:06]} Bxc2 {[%clk 00:07:36]} {[%emt 00:00:26]} 23.
Qxc2 {[%clk 00:08:21]} {[%emt 00:00:02]} Qc6 {[%clk 00:07:26]} {[%emt
00:00:12]} 24. Ne4 {[%clk 00:08:15]} {[%emt 00:00:09]} Rad8 {[%clk 00:07:26]}
{[%emt 00:00:04]} 25. Rd1 {[%clk 00:08:14]} {[%emt 00:00:04]} Rxd1+ {[%clk
00:07:17]} {[%emt 00:00:12]} 26. Qxd1 {[%clk 00:08:15]} {[%emt 00:00:01]} Qb6
{[%clk 00:07:17]} {[%emt 00:00:03]} 27. Qd4 {[%clk 00:08:09]} {[%emt 00:00:10]}
Qc6 {[%clk 00:06:58]} {[%emt 00:00:21]} 28. Rd3 {[%clk 00:07:55]} {[%emt
00:00:19]} f6 {[%clk 00:06:44]} {[%emt 00:00:16]} 29. exf6 {[%clk 00:07:53]}
{[%emt 00:00:05]} gxf6 {[%clk 00:06:36]} {[%emt 00:00:11]} 30. Qd5+ {[%clk
00:07:55]} {[%emt 00:00:01]} Qxd5 {[%emt 00:00:16]} 31. Rxd5 {[%emt 00:00:02]}
Kf7 {[%clk 00:05:51]} {[%emt 00:00:30]} 32. Rd7+ {[%clk 00:07:52]} {[%emt
00:00:06]} Ke6 {[%clk 00:05:53]} {[%emt 00:00:01]} 33. Rxc7 {[%clk 00:07:53]}
{[%emt 00:00:02]} Kd5 {[%emt 00:00:11]} 34. Ng3 {[%clk 00:07:48]} {[%emt
00:00:06]} Re8 {[%clk 00:05:41]} {[%emt 00:00:09]} 35. Kf2 {[%clk 00:07:49]}
{[%emt 00:00:03]} Re6 {[%clk 00:05:27]} {[%emt 00:00:16]} 36. Nf5 {[%clk
00:07:35]} {[%emt 00:00:17]} Ke4 {[%clk 00:05:20]} {[%emt 00:00:09]} 37. Nd4
{[%clk 00:07:22]} {[%emt 00:00:17]} Rd6 {[%clk 00:04:34]} {[%emt 00:00:49]} 38.
Kg3 {[%clk 00:07:15]} {[%emt 00:00:10]} Kd3 {[%clk 00:04:28]} {[%emt 00:00:09]}
39. Nxb5 {[%clk 00:07:05]} {[%emt 00:00:13]} Re6 {[%clk 00:04:21]} {[%emt
00:00:10]} 40. Nd4 {[%clk 00:06:59]} {[%emt 00:00:10]} Re3 {[%clk 00:04:21]}
{[%emt 00:00:02]} 41. Kg2 {[%clk 00:07:00]} {[%emt 00:00:01]} Kd2 {[%clk
00:04:00]} {[%emt 00:00:24]} 42. b3 {[%clk 00:06:47]} {[%emt 00:00:17]} axb3
{[%clk 00:03:43]} {[%emt 00:00:20]} 43. axb3 {[%clk 00:06:48]} {[%emt
00:00:02]} Rxc3 {[%clk 00:03:26]} {[%emt 00:00:20]} 44. Rxc3 {[%clk 00:06:49]}
{[%emt 00:00:02]} Kxc3 {[%clk 00:03:27]} {[%emt 00:00:02]} 45. Nf5 {[%clk
00:06:51]} Kxb3 {[%clk 00:03:29]} {[%emt 00:00:01]} 46. Nxh6 {[%clk 00:06:53]}
Kc4 {[%clk 00:03:31]} 47. Nf5 {[%clk 00:06:53]} {[%emt 00:00:02]} Kd5 {[%clk
00:03:33]} {[%emt 00:00:01]} 48. h4 {[%clk 00:06:53]} {[%emt 00:00:03]} Ke6
{[%clk 00:03:32]} {[%emt 00:00:04]} 49. h5 {[%clk 00:06:53]} {[%emt 00:00:03]}
1-0

[Event "4. Memorial Svat.Hastika OPEN"]
[Site "Jesenik, Czech Republic"]
[Date "2022.09.03"]
[Round "7.1"]
[White "Gnida, Patrik"]
[Black "Wrobel, Maciej"]
[Result "1-0"]
[TimeControl "720+3"]
[WhiteFideId "351660"]
[BlackFideId "1181351"]
[WhiteElo "2092"]
[BlackElo "1873"]

1. d4 {[%clk 00:12:03]} {[%emt 00:00:02]} Nf6 {[%clk 00:12:05]} {[%emt
00:00:02]} 2. Nf3 {[%clk 00:12:04]} {[%emt 00:00:02]} g6 {[%clk 00:12:06]} 3.
c4 {[%clk 00:12:06]} {[%emt 00:00:02]} Bg7 {[%clk 00:12:08]} {[%emt 00:00:01]}
4. g3 {[%clk 00:12:08]} O-O {[%clk 00:12:08]} {[%emt 00:00:02]} 5. Bg2 {[%clk
00:12:10]} d6 {[%clk 00:12:10]} {[%emt 00:00:02]} 6. O-O {[%clk 00:12:12]}
{[%emt 00:00:01]} Nc6 {[%emt 00:00:03]} 7. d5 {[%clk 00:12:04]} {[%emt
00:00:09]} Na5 {[%clk 00:12:00]} {[%emt 00:00:15]} 8. Na3 {[%clk 00:11:20]}
{[%emt 00:00:47]} c5 {[%clk 00:11:53]} {[%emt 00:00:09]} 9. Rb1 {[%clk
00:10:39]} {[%emt 00:00:44]} Bf5 {[%clk 00:11:43]} {[%emt 00:00:13]} 10. Ra1
{[%clk 00:10:34]} {[%emt 00:00:09]} Bd7 {[%clk 00:11:40]} {[%emt 00:00:06]} 11.
Nd2 {[%clk 00:10:01]} {[%emt 00:00:36]} a6 {[%clk 00:11:07]} {[%emt 00:00:36]}
12. Rb1 {[%clk 00:09:42]} {[%emt 00:00:22]} b5 {[%clk 00:10:29]} {[%emt
00:00:41]} 13. b3 {[%clk 00:09:28]} {[%emt 00:00:18]} Rb8 {[%clk 00:09:21]}
{[%emt 00:01:10]} 14. Bb2 {[%clk 00:09:20]} {[%emt 00:00:11]} Qc8 {[%clk
00:08:32]} {[%emt 00:00:52]} 15. Re1 {[%clk 00:09:15]} {[%emt 00:00:09]} Ng4
{[%clk 00:08:05]} {[%emt 00:00:29]} 16. Bxg7 {[%clk 00:09:04]} {[%emt
00:00:13]} Kxg7 {[%clk 00:08:06]} {[%emt 00:00:02]} 17. e4 {[%clk 00:08:56]}
{[%emt 00:00:11]} h5 {[%clk 00:07:33]} {[%emt 00:00:37]} 18. f4 {[%clk
00:08:26]} {[%emt 00:00:33]} Rh8 {[%clk 00:06:58]} {[%emt 00:00:37]} 19. Qf3
{[%clk 00:08:14]} {[%emt 00:00:16]} b4 {[%clk 00:06:37]} {[%emt 00:00:24]} 20.
Nc2 {[%clk 00:08:11]} {[%emt 00:00:06]} h4 {[%clk 00:06:38]} {[%emt 00:00:02]}
21. h3 {[%clk 00:08:05]} {[%emt 00:00:09]} Nh6 {[%clk 00:06:04]} {[%emt
00:00:37]} 22. g4 {[%clk 00:08:06]} {[%emt 00:00:02]} Nxg4 {[%clk 00:05:59]}
{[%emt 00:00:08]} 23. hxg4 {[%clk 00:08:08]} Bxg4 {[%clk 00:06:01]} {[%emt
00:00:02]} 24. Qf2 {[%clk 00:08:01]} {[%emt 00:00:10]} h3 {[%clk 00:05:56]}
{[%emt 00:00:08]} 25. Bf3 {[%clk 00:08:02]} h2+ {[%clk 00:05:15]} {[%emt
00:00:45]} 26. Kh1 {[%clk 00:08:04]} Rh3 {[%clk 00:04:18]} {[%emt 00:01:00]} 27.
Bg2 {[%clk 00:07:51]} {[%emt 00:00:16]} Rh5 {[%clk 00:03:42]} {[%emt 00:00:38]}
28. Re3 {[%clk 00:07:39]} {[%emt 00:00:15]} Qd7 {[%clk 00:03:36]} {[%emt
00:00:10]} 29. Rg3 {[%clk 00:07:27]} {[%emt 00:00:15]} f5 {[%clk 00:03:29]}
{[%emt 00:00:10]} 30. Ne3 {[%clk 00:07:22]} {[%emt 00:00:08]} Rf8 {[%clk
00:03:16]} {[%emt 00:00:15]} 31. exf5 {[%clk 00:06:58]} {[%emt 00:00:28]} gxf5
{[%clk 00:03:00]} {[%emt 00:00:19]} 32. Nf3 {[%clk 00:06:34]} {[%emt 00:00:27]}
Nb7 {[%clk 00:02:45]} {[%emt 00:00:18]} 33. Rf1 {[%clk 00:06:28]} {[%emt
00:00:09]} Nd8 {[%clk 00:02:24]} {[%emt 00:00:25]} 34. Ng5 {[%clk 00:06:30]}
{[%emt 00:00:01]} Rf6 {[%clk 00:01:59]} {[%emt 00:00:29]} 35. Bf3 {[%clk
00:06:19]} {[%emt 00:00:13]} Bxf3+ {[%clk 00:01:22]} {[%emt 00:00:40]} 36. Qxf3
{[%clk 00:06:21]} Rfh6 {[%clk 00:00:55]} {[%emt 00:00:30]} 37. Qg2 {[%clk
00:06:05]} {[%emt 00:00:19]} Kf6 {[%clk 00:00:36]} {[%emt 00:00:22]} 38. Qb2+
{[%clk 00:05:23]} {[%emt 00:00:45]} 1-0